Cogmind - Beta 14 @@@ ROGUE MODE // 2024.08.19 @ 15:17:52 Player: ManaDood Result: Destroyed by H-66 Slayer with Gauss Rifle Performance ------------- Evolutions (4) 2000 Regions Visited (6) 1200 Robots Destroyed (58) 290 Value Destroyed (1663) 1663 Prototype IDs (1) 20 Alien Tech Used (0) 0 Bonus (0) 0 TOTAL SCORE: 5173 Bonus ------- None Cogmind --------- Core Integrity 0/850 Matter 214/300 Energy 100/100 System Corruption 2% Temperature Cool (0) Movement Core (200) Ox3 Location -6/Factory Parts ------- > --- POWER (2) -------- (None) > --- PROPULSION (5) --- (None) > --- UTILITY (5) ------ Medium Storage Unit Terrain Scan Processor > --- WEAPON (3) ------- (None) > --- INVENTORY (10) --- (None) Peak State ------------ > --- POWER ------------ Light Nuclear Core Angular Momentum Engine > --- PROPULSION ------- Armored Treads Medium Treads Aluminum Leg Aluminum Leg Armored Leg > --- UTILITY ---------- Medium Storage Unit High-capacity Matter Pod Advanced Visual Processing Unit Medium Armor Plating System Shield > --- WEAPON ----------- Beam Rifle Gauss Cannon Missile Launcher > --- INVENTORY -------- F-cell Engine Medium Storage Unit Terrain Scan Processor Medium Armor Plating Medium Armor Plating Hardlight Generator Assault Rifle [Rating: 42] Favorites ----------- Power Light Nuclear Core Engine Light Ion Engine Power Core Light Nuclear Core Propulsion Aluminum Leg Treads Medium Treads Leg Aluminum Leg Utility Medium Storage Unit Device Hardlight Generator Storage Medium Storage Unit Processor Advanced Visual Processing Unit Hackware System Shield Protection Light Armor Plating Weapon Gauss Cannon Energy Gun Beam Rifle Ballistic Gun Assault Rifle Ballistic Cannon Gauss Cannon Launcher Missile Launcher Build | -11 -10 -10 -9 -8 -7 -6 ------- Run | Yrd Mat Min Mat Mat Fac Fac Slots Evolved 8 | . . . 2 2 2 2 Power 1 | . . . . . 1 . Propulsion 3 | . . . 2 . . 1 Utility 3 | . . . . 2 . 1 Weapon 1 | . . . . . 1 . Parts Attached 77 | 5 1 5 2 42 7 15 Power 11 | 1 . . . 7 1 2 Engine 7 | 1 . . . 4 . 2 Core 4 | . . . . 3 1 . Reactor . | . . . . . . . Propulsion 24 | 2 . . 1 15 3 3 Treads 2 | . . . . . 1 1 Leg 22 | 2 . . 1 15 2 2 Wheel . | . . . . . . . Hover . | . . . . . . . Flight . | . . . . . . . Utility 23 | . 1 1 1 12 1 7 Device 4 | . . . . 3 . 1 Storage 10 | . 1 1 1 5 . 2 Processor 2 | . . . . 1 . 1 Hackware 1 | . . . . 1 . . Protection 6 | . . . . 2 1 3 Artifact . | . . . . . . . Weapon 19 | 2 . 4 . 8 2 3 Energy Gun 1 | . . . . . 1 . Energy Cannon . | . . . . . . . Ballistic Gun 10 | 2 . 3 . 4 . 1 Ballistic Cannon 5 | . . . . 3 1 1 Launcher 3 | . . 1 . 1 . 1 Special Weapon . | . . . . . . . Impact Weapon . | . . . . . . . Slashing Weapon . | . . . . . . . Piercing Weapon . | . . . . . . . Special Melee Weapon . | . . . . . . . Unidentified Prototypes 1 | . . . . . . 1 Parts Lost 36 | . . . 3 10 1 22 Power 9 | . . . 1 4 . 4 Propulsion 11 | . . . 2 3 1 5 Utility 9 | . . . . 1 . 8 Weapon 7 | . . . . 2 . 5 Highest Loss Streak 21 | . . . 3 3 1 21 To Critical Strikes . | . . . . . . . Average Slot Usage (%) 86 | . 71 93 85 91 88 72 Engine 7 | . 14 14 11 7 . 3 Core 3 | . . . . . 15 7 Treads 2 | . . . . . 3 10 Leg 25 | . 28 28 30 30 19 12 Device 1 | . . . . 4 . . Storage 13 | . . 22 22 14 7 8 Processor 4 | . . . . 6 7 5 Hackware 3 | . . . . 4 7 4 Protection 2 | . . . . 4 3 1 Energy Gun 1 | . . . . . 4 4 Ballistic Gun 11 | . 28 27 22 10 . . Ballistic Cannon 6 | . . . . 7 18 7 Peak Build Rating 42 | 5 6 7 9 30 31 42 Average Rating 18 | 3 5 6 8 20 28 30 On Entrance 10 | . 5 6 7 6 22 27 Naked Turns . | . . . . . . . Heaviest Build 56 | 6 8 13 18 41 41 56 Greatest Support 48 | 20 20 20 30 40 30 48 Greatest Overweight (x) 11 | . . . 1 3 1 11 Average Overweight (x) . | . . . . . 1 1 Largest Inventory Capacity 10 | 5 5 8 10 10 10 10 Average Capacity 8 | 5 5 6 8 10 10 9 Most Carried 10 | 5 5 8 10 10 10 10 Average Carried 7 | 2 4 6 7 8 8 6 Final Capacity 10 | 5 5 8 10 10 10 10 Final Carried 10 | 5 5 8 10 9 9 . Class Distribution -------------------- 43% | Mutant 31% | Scavenger-Mutant 14% | Scavenger-Skirmisher 7% | Scavenger-Tank Dominant Class ---------------- Mutant | -10/Materials Mutant | -10/Mines Mutant | -9/Materials Scavenger-Mutant | -8/Materials Scavenger-Skirmisher | -7/Factory Scavenger-Skirmisher | -6/Factory Resources | -11 -10 -10 -9 -8 -7 -6 ----------- Run | Yrd Mat Min Mat Mat Fac Fac Matter Collected 1785 | 262 . 85 207 945 . 286 Remotely . | . . . . . . . Salvage Created 2002 | 39 . 48 114 1255 . 546 Parts 106 | 2 . 4 4 68 2 26 Haulers Intercepted . | . . . . . . . Recyclers Shooed 6 | . . 1 1 . . 4 Parts Field Recycled . | . . . . . . . Retrieved Matter . | . . . . . . . Parts Self-Destructed . | . . . . . . . Prevented . | . . . . . . . Kills | -11 -10 -10 -9 -8 -7 -6 ------- Run | Yrd Mat Min Mat Mat Fac Fac Combat Hostiles Destroyed 36 | 1 . 2 3 21 . 9 Guns 18 | 1 . . 3 13 . 1 Cannons 8 | . . . . 6 . 2 AOE 10 | . . 2 . 2 . 6 Classes Destroyed 9 | 1 . . 2 5 . 1 Worker 6 | . . . . 3 1 2 Builder 9 | . . . . 3 . 6 Recycler 6 | . . . . 4 . 2 Watcher 1 | . . . . 1 . . Swarmer 7 | . . . 1 3 . 3 Grunt 24 | 1 . 2 1 16 . 4 Sentry 3 | . . . 1 1 . 1 Programmer 1 | . . . . . . 1 Heavy 1 | . . . . 1 . . Best Kill Streak 13 | 1 . 2 2 6 1 13 Combat Bots Only 4 | 1 . 2 2 3 . 4 Max Kills in Single Turn 6 | 1 . 1 1 6 1 5 Gunslinging . | . . . . . . . Exploded 2 | . . 1 . 2 . 2 Melee . | . . . . . . . Uniques/NPCs Destroyed . | . . . . . . . Combat | -11 -10 -10 -9 -8 -7 -6 -------- Run | Yrd Mat Min Mat Mat Fac Fac Hostile Shots Fired 466 | 4 . 8 64 120 44 226 Missed 157 | 2 . 2 25 30 12 86 Damage Taken 5834 | 21 . 89 514 1813 469 2928 Core 1285 | 10 . 32 85 251 43 864 Absorbed by Shields 152 | . . . . 92 . 60 Regen/Repaired (Parts) 352 | . 18 . . 284 50 . Core Remaining (%) 80 | 96 . 83 78 54 93 . Volleys Fired 128 | 3 1 6 12 85 . 21 Largest 3 | 2 2 2 2 2 . 3 Hottest 140 | 40 40 40 40 96 . 140 Shots Fired 254 | 6 2 7 24 162 . 53 Gun 164 | 6 2 2 24 110 . 20 Cannon 70 | . . . . 49 . 21 Launcher 20 | . . 5 . 3 . 12 Special . | . . . . . . . Kinetic 217 | 6 2 2 24 159 . 24 Thermal 17 | . . . . . . 17 Explosive 20 | . . 5 . 3 . 12 Electromagnetic . | . . . . . . . Robot Hit Streak 12 | 2 . 2 7 12 . 9 Robot Miss Streak 5 | 3 2 3 3 2 . 5 Penetration Max 1 | . . . . . . 1 Secondary Targets . | . . . . . . . Shots Hit Robots 166 | 2 . 3 16 117 . 28 Core Hits 104 | 2 . 4 5 57 . 36 Critical Kills . | . . . . . . . Critical Parts Destroyed . | . . . . . . . Critical Strikes 4 | . . . . 1 . 3 Burn 1 | . . . . . . 1 Blast 3 | . . . . 1 . 2 Melee Attacks . | . . . . . . . Impact . | . . . . . . . Slashing . | . . . . . . . Piercing . | . . . . . . . Sneak Attacks . | . . . . . . . Combat Hostiles . | . . . . . . . Follow-up Attacks . | . . . . . . . Damage Inflicted 4846 | 22 . 220 180 2583 15 1826 Guns 1443 | 22 . . 172 1092 . 157 Cannons 1340 | . . . . 944 . 396 Explosions 2011 | . . 220 . 547 . 1244 Melee . | . . . . . . . Ramming 52 | . . . 8 . 15 29 Kinetic 2651 | 22 . . 172 2036 . 421 Thermal 625 | . . . . 493 . 132 Explosive 1518 | . . 220 . 54 . 1244 Electromagnetic . | . . . . . . . Impact . | . . . . . . . Slashing . | . . . . . . . Piercing . | . . . . . . . Highest Corruption 2 | . . . . . . 2 Average Corruption 2 | . . . . . . 2 Corruption Purged . | . . . . . . . Corruption Blocked . | . . . . . . . Effects 1 | . . . . . . 1 Message Errors 1 | . . . . . . 1 Overload Shots . | . . . . . . . Overflow Damage 227 | . . . . 151 . 76 Projectiles 11 | . . . . 9 . 2 Explosions 216 | . . . . 142 . 74 Melee . | . . . . . . . Knockbacks 9 | . . . . 6 . 3 Impact . | . . . . . . . Kinetic 9 | . . . . 6 . 3 Secondary . | . . . . . . . Self-Inflicted Damage 203 | . . . . 114 . 89 Shots 4 | . . . . 1 . 3 Rammed 1 | . . . . . 1 . Targets Rammed 12 | . . . 1 . 3 8 Kicked 10 | . . . 1 . 1 8 Crushed 1 | . . . . . 1 . Highest Temperature 354 | 6 . 32 6 318 . 354 Average Temperature 115 | 6 . 17 3 86 . 157 Received Heat Transfer 1773 | 12 . 69 195 733 . 764 Effects 2 | . . . . 1 . 1 Energy Bleed 1 | . . . . . . 1 Short Circuit 1 | . . . . 1 . . Siege Activations . | . . . . . . . Robots Corrupted . | . . . . . . . Combat Hostiles . | . . . . . . . Parts Fried . | . . . . . . . Impact Corruptions . | . . . . . . . Robots Melted . | . . . . . . . Combat Hostiles . | . . . . . . . Parts Melted . | . . . . . . . Heat Transferred 707 | . . . . 300 . 407 Parts Sabotaged . | . . . . . . . Parts Stolen . | . . . . . . . Parts Stripped . | . . . . . . . Power Chain Reactions . | . . . . . . . Alert | -11 -10 -10 -9 -8 -7 -6 ------- Run | Yrd Mat Min Mat Mat Fac Fac Peak Influence 385 | 20 35 88 258 370 190 385 Initial 168 | . 13 13 33 100 168 7 Average 142 | 2 22 64 131 198 143 147 Maximum Alert Level 1 | . . . 1 1 . 1 Low Security (%) 78 | 100 100 100 74 67 100 52 Level 1 21 | . . . 25 32 . 47 Level 2 . | . . . . . . . Level 3 . | . . . . . . . Level 4 . | . . . . . . . Level 5 . | . . . . . . . High Security . | . . . . . . . Max Security . | . . . . . . . Squads Dispatched 9 | . 1 . 1 5 . 2 Investigation 4 | . 1 . . 3 . . Extermination . | . . . . . . . Reinforcement 5 | . . . 1 2 . 2 Assault . | . . . . . . . Garrison . | . . . . . . . Intercept . | . . . . . . . Searches Triggered . | . . . . . . . Construction Impeded 2 | . . . . 1 . 1 Haulers Reinforced 1 | . . . . . . 1 Active Scanning Responses . | . . . . . . . Cargo Convoy Interrupts . | . . . . . . . Stealth | -11 -10 -10 -9 -8 -7 -6 --------- Run | Yrd Mat Min Mat Mat Fac Fac Distress Signals 4 | . . . 1 . 1 2 Communications Jammed . | . . . . . . . Distress Signals . | . . . . . . . Times Spotted 70 | 1 2 2 16 27 2 20 Peak Tracking Total 6 | 1 2 2 6 4 2 6 Tactical Retreats 8 | . . . 3 1 1 3 Traps | -11 -10 -10 -9 -8 -7 -6 ------- Run | Yrd Mat Min Mat Mat Fac Fac Traps Triggered 1 | . . . . 1 . . Indirectly . | . . . . . . . Trap Hack Attempts . | . . . . . . . Triggered . | . . . . . . . Disarmed . | . . . . . . . Reprogrammed . | . . . . . . . Reused 3 | . . . 3 . . . Traps Extracted . | . . . . . . . Installed 3 | . . . 3 . . . Triggered 3 | . . . 3 . . . Most Traps Carried 3 | . . 3 3 . . . Machines | -11 -10 -10 -9 -8 -7 -6 ---------- Run | Yrd Mat Min Mat Mat Fac Fac Machines Disabled 5 | . . . . 2 . 3 Max in Single Turn 2 | . . . . 2 . 2 Machines Repaired . | . . . . . . . Machines Dismantled . | . . . . . . . Machines Sabotaged . | . . . . . . . Overloaded Fab Kills . | . . . . . . . Hacking | -11 -10 -10 -9 -8 -7 -6 --------- Run | Yrd Mat Min Mat Mat Fac Fac Machines Accessed 10 | . 3 . . 5 2 . Terminals 5 | . 2 . . 2 1 . Fabricators . | . . . . . . . Repair Stations 4 | . 1 . . 2 1 . Recycling Units . | . . . . . . . Scanalyzers 1 | . . . . 1 . . Garrison Access . | . . . . . . . Total Hacks 38 | . 12 . . 20 6 . Successful 27 | . 9 . . 15 3 . Failed 10 | . 3 . . 4 3 . Catastrophic 1 | . . . . 1 . . Database Lockouts 1 | . . . . 1 . . Manual 5 | . 1 . . 4 . . Terminals 13 | . 8 . . 4 1 . Fabricators . | . . . . . . . Repair Stations 21 | . 4 . . 12 5 . Recycling Units . | . . . . . . . Scanalyzers 4 | . . . . 4 . . Garrison Access . | . . . . . . . Terminal Hacks 7 | . 5 . . 2 . . Record 6 | . 4 . . 2 . . Maintenance Status 1 | . 1 . . . . . Fabricator Hacks . | . . . . . . . Repair Station Hacks 16 | . 4 . . 9 3 . Scan Component 9 | . 2 . . 5 2 . Repair 7 | . 2 . . 4 1 . Recycling Unit Hacks . | . . . . . . . Scanalyzer 4 | . . . . 4 . . Insert Component 2 | . . . . 2 . . Analyze 2 | . . . . 2 . . Garrison Access Hacks . | . . . . . . . Unauthorized Hacks . | . . . . . . . Terminals . | . . . . . . . Fabricators . | . . . . . . . Repair Stations . | . . . . . . . Recycling Units . | . . . . . . . Scanalyzers . | . . . . . . . Garrison Access . | . . . . . . . Data Cores Recovered . | . . . . . . . Used . | . . . . . . . Hacking Detections 10 | . 3 . . 5 2 . Full Trace Events 4 | . 2 . . 2 . . Feedback Events . | . . . . . . . Feedback Blocked . | . . . . . . . Robot Schematics Acquired . | . . . . . . . Robots Built . | . . . . . . . Authchips . | . . . . . . . Time . | . . . . . . . Total Robot Build Rating . | . . . . . . . Part Schematics Acquired 2 | . . . . 2 . . Parts Built . | . . . . . . . Authchips . | . . . . . . . Time . | . . . . . . . Total Part Build Rating . | . . . . . . . Parts Repaired 7 | . 2 . . 4 1 . Time 182 | . 52 . . 104 26 . Parts Recycled . | . . . . . . . Recycled Matter . | . . . . . . . Retrieved Matter . | . . . . . . . Retrieved Components . | . . . . . . . Parts Scanalyzed 2 | . . . . 2 . . Part Schematics Acquired 2 | . . . . 2 . . Parts Damaged 1 | . . . . 1 . . Bothacking | -11 -10 -10 -9 -8 -7 -6 ------------ Run | Yrd Mat Min Mat Mat Fac Fac Used RIF Installer . | . . . . . . . Robots Hacked . | . . . . . . . Non-combat . | . . . . . . . Combat . | . . . . . . . Robot Hacks Applied . | . . . . . . . Relay Couplers Released . | . . . . . . . Fabnet Peak Effective % . | . . . . . . . Robots Rewired . | . . . . . . . Allies Hacked . | . . . . . . . Hacks Repelled . | . . . . . . . Allies | -11 -10 -10 -9 -8 -7 -6 -------- Run | Yrd Mat Min Mat Mat Fac Fac Total Allies . | . . . . . . . Largest Group . | . . . . . . . Highest-Rated Group . | . . . . . . . Highest-Rated Ally . | . . . . . . . Total Orders . | . . . . . . . Ally Attacks . | . . . . . . . Total Damage . | . . . . . . . Kills . | . . . . . . . Allies Corrupted . | . . . . . . . Allies Melted . | . . . . . . . Intel | -11 -10 -10 -9 -8 -7 -6 ------- Run | Yrd Mat Min Mat Mat Fac Fac Robot Analysis Total . | . . . . . . . Derelict Logs Recovered 1 | . . 1 . . . . Drone Launches . | . . . . . . . Drone Recoveries . | . . . . . . . Exploration | -11 -10 -10 -9 -8 -7 -6 ------------- Run | Yrd Mat Min Mat Mat Fac Fac Turns Passed 3035 | 87 206 349 309 1172 485 427 Spaces Moved 1461 | 64 118 267 175 452 219 166 Core 35 | 18 . . . . . 17 Treads 64 | . . . . . 46 18 Legs 1362 | 46 118 267 175 452 173 131 Wheels . | . . . . . . . Hover . | . . . . . . . Flight . | . . . . . . . Fastest Speed 50 | 50 120 120 120 120 190 120 Average Speed 147 | 100 120 120 124 141 200 197 Slowest Speed 600 | 120 120 120 190 330 240 600 Overloaded Moves . | . . . . . . . Propulsion Burnouts . | . . . . . . . Robots Hopped . | . . . . . . . Cave-ins Triggered . | . . . . . . . Exploration Rate (%) 23 | 6 24 59 18 43 7 10 Regions Visited 6 Branch Regions 1 Pre-discovered Areas . | . . . . . . . Known Exits Taken . | . . . . . . . Unknown Exits Taken 6 | 1 1 1 1 1 1 . Scrap Searched 1 | . . 1 . . . . Spaces Dug . | . . . . . . . Terrain Destroyed 197 | . . 34 . 101 . 62 Melee . | . . . . . . . Projectile 29 | . . . . 26 . 3 AOE 168 | . . 34 . 75 . 59 Terrain Rammed . | . . . . . . . Walls Destroyed . | . . . . . . . Machines Disabled . | . . . . . . . Actions | -11 -10 -10 -9 -8 -7 -6 --------- Run | Yrd Mat Min Mat Mat Fac Fac Total 2095 | 81 181 288 246 824 262 213 Wait 329 | . 54 2 42 204 27 . Move 1455 | 63 117 266 174 451 218 166 Hop . | . . . . . . . Pick Up 52 | 10 5 6 7 17 4 3 Fast Attach 20 | . 1 1 . 14 2 2 Attach 39 | 5 . . 1 16 5 12 Detach 8 | . . . . 7 1 . Swap 18 | . . 4 1 12 . 1 Drop 31 | . 3 3 5 18 2 . Fire 128 | 3 1 6 12 85 . 21 Melee . | . . . . . . . Ram . | . . . . . . . Kick 10 | . . . 1 . 1 8 Crush 2 | . . . . . 2 . Escape Stasis . | . . . . . . . Rewire . | . . . . . . . Trap 3 | . . . 3 . . . Miscellaneous . | . . . . . . . Route ------- -11/Scrapyard -10/Materials -10/Mines -9/Materials -8/Materials -7/Factory -6/Factory History --------- Turn | Location | Event 2 | -11/Scrapyard | Met Revision 17 63 | -11/Scrapyard | Discovered new exit (range 8) 88 | -11/Scrapyard | Entered Materials 134 | -10/Materials | Repaired Aluminum Leg 162 | -10/Materials | Repaired Ion Engine 278 | -10/Materials | Discovered new exit (range 10) 294 | -10/Materials | Entered Mines 311 | -10/Mines | Build established: Mutant 386 | -10/Mines | Received a Rocket Launcher from a helpful Derelict 545 | -10/Mines | Learned Materials garrison access intel 557 | -10/Mines | Found a hidden stash of uninstalled traps 628 | -10/Mines | Discovered new exit (range 14) 643 | -10/Mines | Entered Materials 643 | -9/Materials | Evolved 2 slots: Propulsion x2 935 | -9/Materials | Discovered new exit (range 10) 952 | -9/Materials | Entered another Materials area 952 | -8/Materials | Evolved 2 slots: Utility x2 953 | -8/Materials | Loaded intel: 1 garrison access location 983 | -8/Materials | Lost 3 parts (1p2n) 1033 | -8/Materials | Central database locked down 1463 | -8/Materials | Build established: Scavenger-Mutant 1483 | -8/Materials | Repaired Assault Rifle 1941 | -8/Materials | Repaired Aluminum Leg 1969 | -8/Materials | Repaired Aluminum Leg 1996 | -8/Materials | Repaired Aluminum Leg 2048 | -8/Materials | Discovered new exit (range 20) 2113 | -8/Materials | Lost 3 parts (1p2n) 2124 | -8/Materials | Entered Factory 2124 | -7/Factory | Evolved 2 slots: Power x1, Weapon x1 2317 | -7/Factory | Repaired Aluminum Leg 2599 | -7/Factory | Discovered new exit (range 5) 2609 | -7/Factory | Entered another Factory area 2609 | -6/Factory | Evolved 2 slots: Propulsion x1, Utility x1 2649 | -6/Factory | Build established: Scavenger-Skirmisher 2995 | -6/Factory | Core integrity fell below 50% 3014 | -6/Factory | Core integrity fell below 20% 3036 | -6/Factory | Destroyed by H-66 Slayer with Gauss Rifle Last Messages --------------- 03014_ K-01 Serf collects debris. 03014_ U-05 Engineer lays Concrete. 03016_ R-10 Processor collects Carbon-fiber Leg. 03016_ Slug penetrates Wall. 03016_ K-01 Serf collects debris. 03016_ U-05 Engineer lays Concrete. 03016_ Critical hit (Burn: +37). 03017_ K-01 Serf collects debris. 03018_ U-05 Engineer lays Concrete. 03018_ Faulty F-cell Engine destroyed. 03019_ U-05 Engineer lays Concrete. 03019_ Penetrated by Slug. 03020_ K-01 Serf collects debris. 03020_ U-05 Engineer lays Concrete. 03020_ R-10 Processor collects Lgt. Fission Core. 03021_ K-01 Serf collects debris. 03022_ U-05 Engineer builds a Wall. 03027_ QW>VAIR#LLXZIWX5|VQJYWH19VS>28E0I> 03036_ Penetrated by Slug. Map ----- +----------------------------------------------------+ | ?????????????????????????????????????????????????? | | ?????????????????????????????????????????????????# | | ??????????????????????????????????????????????? | | ???????????????????????????????????????????? | | ?????????????????????????????????????????? | | ????????????????????????????????????????T" | | ?????????????????????????????????????? " " | | ???????????????????????????????????? | | ???????????????????????????????????? | | ????????????????????????????????????# | | ????????????????????????????????????# | | ????????????????????????????????????# | | ????????????????????????????????????# | | ????????????????????????????????????# | | ????????????????????????##???####???# | | ????????????????????????#;####T ##### | | ????????????????????????# | | ????????????????????????# | | ????????????????????????# | | ????????????????????????+ h % | | ????????????????????????# gR % % | | ????????????????????????# ###;#;;; # ""###"" | | ????????????????????????# # H #??#" | | ????????????????????????# ; = # | | ????????????????????????# # # | | ????????????????????????#@ # # | | ????????????????????????#R # "" # | | ????????????????????????# # "" # | | ???????????????????????? # "? + | | ??????????????????????? # # | | ?????????????????????? # " # | | ?????????????????????? # " # | | ????????????????????? # " ?# | | ???????????????????? # ?# | | ???????????????????? ###### / ###?? | | ???????????????????? ###????? ????? | | ???????????????????? #??????? ???????? | | ???????????????????? ###### #??????? ???????# | | ??????????????????????????? #??????????????????# | | ??????????????????????????? #??????????????????+ | | ???????????????????????????+???????????????????# | | ???????????????????????????????????????????????# | | ???????????????????????????????????????????????# | | ?????????????????????????????????????????????????? | | ?????????????????????????????????????????????????? | | ?????????????????????????????????????????????????? | | ?????????????????????????????????????????????????? | | ?????????????????????????????????????????????????? | | ?????????????????????????????????????????????????? | | ?????????????????????????????????????????????????? | +----------------------------------------------------+ Best States ------------- Heat Dissipation 59 Energy Generation 27 Energy Capacity 360 Matter Stores 500 Matter Capacity 500 Sight Range 20 Terrain Scan Density 85 Armor Coverage 225 Resistance: TH 10 Evasion (%) 55 Recoil Reduction 2 Defensive Hacking 10 Item Schematics ----------------- Aluminum Leg | -8/Materials | Scanalyzed Hvy. Assault Rifle | -8/Materials | Scanalyzed Robot Schematics ------------------ None Fabricated ------------ Nothing Alien Tech Used ----------------- None Achievements -------------- None Challenges ------------ None Game ------ Seed ProtonSalvagingTearclaws Manual? 0 Play Time 01:16:44 Cumulative 13.9 hours Start 2024.08.19 @ 13:24:21 End 2024.08.19 @ 15:17:52 Sessions 1 Manual Loads 0 Difficulty Rogue Special Mode None Game No. 19 Rogue 19 Adventurer 0 Explorer 0 Win Type - Total 0 Types 0/0/0/0/0/0/0/0/0 Lore% 11 Gallery% 19 Achievement% 14 Wizard Run 0 Options --------- Layout 1 ASCII 0 Keyboard 1 Movement Numpad Keybinds 0 Fullscreen 1 Font 32/SmallcapsGlow Map View 50x35 Zoom Use 0% Tactical HUD 1 Map Filters NONE Filters NONE Steam 1 RUN: 9f19332e-0c13-4d48-a52f-aed2346654c0